bitfinex/quotes_BTCUSD_20230905
["timestamp","ask_amount","ask_price","bid_price","bid_amount"]
[1693885055663,0.0145,25668.0,25667.0,2.76765326]
[1693885056008,0.0145,25668.0,25667.0,2.77413326]
[1693885056210,0.0145,25668.0,25667.0,2.78193326]
[1693885056363,0.0145,25668.0,25667.0,2.78865326]
[1693885056522,0.0145,25668.0,25667.0,2.79849326]
[1693885056727,0.0145,25668.0,25667.0,2.79153326]
[1693885056933,0.0145,25668.0,25667.0,2.78865326]
[1693885057132,0.0145,25668.0,25667.0,2.79237326]
[1693885057484,0.0145,25668.0,25667.0,2.79525326]
[1693885057750,0.0145,25668.0,25667.0,2.80245326]
[1693885057936,0.0145,25668.0,25667.0,2.79885326]
[1693885058157,0.0145,25668.0,25667.0,2.79801326]
[1693885058337,0.0145,25668.0,25667.0,2.79693326]
[1693885058570,0.0145,25668.0,25667.0,2.79849326]
[1693885058861,0.001,25668.0,25667.0,2.79525326]
[1693885059108,0.001,25668.0,25667.0,2.79393326]
[1693885059311,0.001,25668.0,25667.0,2.79309326]
[1693885059511,0.001,25668.0,25667.0,2.78733326]
[1693885059712,0.001,25668.0,25667.0,2.78481326]
[1693885059871,0.001,25668.0,25667.0,2.78805326]
[1693885060070,0.001,25668.0,25667.0,2.78829326]
[1693885060292,0.001,25668.0,25667.0,2.78805326]
[1693885060501,0.001,25668.0,25667.0,2.78901326]
[1693885060701,0.001,25668.0,25667.0,2.78829326]
[1693885060904,0.001,25668.0,25667.0,2.78817326]
[1693885061103,0.001,25668.0,25667.0,2.78781326]
[1693885061309,0.001,25668.0,25667.0,2.92784347]
[1693885061475,0.001,25668.0,25667.0,2.92976347]
[1693885061679,0.001,25668.0,25667.0,2.93276347]
[1693885061946,0.001,25668.0,25667.0,2.92700347]
[1693885062144,0.001,25668.0,25667.0,2.77977326]
[1693885062353,0.001,25668.0,25667.0,2.77833326]
[1693885062530,0.001,25668.0,25667.0,2.78181326]
[1693885062955,0.001,25668.0,25667.0,2.78157326]
[1693885063373,0.001,25668.0,25667.0,2.77557326]
[1693885063570,0.001,25668.0,25667.0,2.77461326]
[1693885063774,0.001,25668.0,25667.0,2.84147531]
[1693885063970,0.001,25668.0,25667.0,2.75769326]
[1693885064171,0.001,25668.0,25667.0,2.76009326]
[1693885064518,0.001,25668.0,25667.0,2.76141326]
[1693885064846,0.001,25668.0,25667.0,2.76693326]
[1693885065048,0.001,25668.0,25667.0,2.76813326]
[1693885065252,0.001,25668.0,25667.0,2.77029326]
[1693885065455,0.001,25668.0,25667.0,2.77293326]
[1693885065663,0.001,25668.0,25667.0,2.77329326]
[1693885065866,0.001,25668.0,25667.0,2.85285698]
[1693885066068,0.001,25668.0,25667.0,2.65149698]
[1693885066273,0.001,25668.0,25667.0,2.65431698]
[1693885066510,0.001,25668.0,25667.0,2.66007698]
[1693885066713,0.001,25668.0,25667.0,2.66109698]
[1693885066908,0.001,25668.0,25667.0,2.65581698]
[1693885067089,0.001,25668.0,25667.0,2.66337698]
[1693885067283,0.001,25668.0,25667.0,2.66589698]
[1693885067550,0.001,25668.0,25667.0,2.66853698]
[1693885067707,0.001,25668.0,25667.0,2.66961698]
[1693885067923,0.001,25668.0,25667.0,2.66955698]
[1693885068171,0.001,25668.0,25667.0,2.66733698]
[1693885068374,0.001,25668.0,25667.0,2.66751698]
[1693885068550,0.001,25668.0,25667.0,2.66763698]
[1693885068684,0.001,25668.0,25667.0,2.66421698]
[1693885068888,0.001,25668.0,25667.0,2.66169698]
[1693885069294,0.001,25668.0,25667.0,2.66259698]
[1693885069495,0.001,25668.0,25667.0,2.66325698]
[1693885069703,0.001,25668.0,25667.0,2.66361698]
[1693885069924,0.001,25668.0,25667.0,2.66499698]
[1693885070204,0.001,25668.0,25667.0,2.66379698]
[1693885070377,0.001,25668.0,25667.0,2.66385698]
[1693885070606,0.001,25668.0,25667.0,2.66463571]
[1693885070880,0.001,25668.0,25667.0,2.66505571]
[1693885071064,0.001,25668.0,25667.0,2.66565571]
[1693885071364,0.001,25668.0,25667.0,2.66535571]
[1693885071603,0.001,25668.0,25667.0,2.68547571]
[1693885071814,0.001,25668.0,25667.0,2.68565571]
[1693885072018,0.001,25668.0,25667.0,2.68499571]
[1693885072239,0.001,25668.0,25667.0,2.68517571]
[1693885072451,0.001,25668.0,25667.0,2.68529571]
[1693885072656,0.001,25668.0,25667.0,2.62745199]
[1693885072867,0.001,25668.0,25667.0,2.86626306]
[1693885073038,0.001,25668.0,25667.0,2.72358306]
[1693885073243,0.001,25668.0,25667.0,2.72352306]
[1693885073444,0.001,25668.0,25667.0,2.72358306]
[1693885073658,0.001,25668.0,25667.0,2.72292306]
[1693885073859,0.001,25668.0,25667.0,2.71008306]
[1693885074062,0.001,25668.0,25667.0,2.70960306]
[1693885074588,0.001,25668.0,25667.0,2.70996306]
[1693885074758,0.001,25668.0,25667.0,2.70972306]
[1693885074960,0.001,25668.0,25667.0,2.70960306]
[1693885075167,0.001,25668.0,25667.0,2.70972306]
[1693885075361,0.001,25668.0,25667.0,2.70954306]
[1693885075567,0.001,25668.0,25667.0,2.55935434]
[1693885075743,0.001,25668.0,25667.0,2.48741434]
[1693885077031,0.03988259,25668.0,25667.0,2.48741434]
[1693885079041,0.03988259,25668.0,25667.0,2.39650327]
[1693885081264,0.19662005,25668.0,25667.0,2.33650327]
[1693885081538,0.19662005,25668.0,25667.0,2.25110327]
[1693885082632,0.03988259,25668.0,25667.0,2.33650327]
[1693885083111,0.02,25665.0,25661.0,0.40414313]
[1693885083346,0.0854,25664.0,25661.0,0.506597]
[1693885083552,0.2363,25665.0,25662.0,0.506569]
[1693885083756,0.04011178,25664.0,25662.0,0.506569]
[1693885084164,0.04011178,25664.0,25662.0,1.013154]
[1693885084396,0.04011178,25664.0,25662.0,1.00546736]
[1693885084604,0.04011178,25664.0,25662.0,1.51205236]
[1693885084838,0.04011178,25664.0,25662.0,1.51305236]
[1693885085783,0.04511178,25664.0,25663.0,0.15536]
[1693885085993,0.04511178,25664.0,25663.0,1.74543338]
[1693885086189,0.00800078,25664.0,25663.0,2.13588027]
[1693885086389,0.00800078,25664.0,25663.0,2.43000027]
[1693885086595,0.008,25664.0,25663.0,2.65444873]
[1693885086820,0.008,25664.0,25663.0,2.65090873]
[1693885087053,0.008,25664.0,25663.0,2.65028873]
[1693885087054,0.013,25664.0,25663.0,2.65028873]
[1693885087229,0.015,25664.0,25663.0,2.67380873]
[1693885087428,0.015,25664.0,25663.0,2.67344873]
[1693885087629,0.013,25664.0,25663.0,2.64986873]
[1693885087832,0.015,25664.0,25663.0,2.67326873]
[1693885088005,0.015,25664.0,25663.0,2.67338873]
[1693885088231,0.002,25664.0,25663.0,2.66992873]
[1693885088408,0.004,25664.0,25663.0,2.69462873]
[1693885088583,0.004,25664.0,25663.0,2.69318873]
[1693885088784,0.004,25664.0,25663.0,2.69522873]
[1693885089020,0.004,25664.0,25663.0,2.69474873]
[1693885089226,0.004,25664.0,25663.0,2.68754873]
[1693885089475,0.004,25664.0,25663.0,2.68748873]
[1693885089650,0.004,25664.0,25663.0,2.68718873]
[1693885089853,0.004,25664.0,25663.0,2.68658873]
[1693885090075,0.004,25664.0,25663.0,2.68646873]
[1693885090294,0.004,25664.0,25663.0,2.69360873]
[1693885090618,0.004,25664.0,25663.0,2.69378873]
[1693885090849,0.004,25664.0,25663.0,2.69402873]
[1693885091031,0.004,25664.0,25663.0,2.70332873]
[1693885091253,0.004,25664.0,25663.0,2.70254873]
[1693885091398,0.004,25664.0,25663.0,2.70482873]
[1693885091603,0.004,25664.0,25663.0,2.70398873]
[1693885091799,0.004,25664.0,25663.0,2.70332873]
[1693885092028,0.004,25664.0,25663.0,2.70314873]
[1693885092228,0.004,25664.0,25663.0,2.70296873]
[1693885092443,0.004,25664.0,25663.0,2.70248873]
[1693885092651,0.004,25664.0,25663.0,2.70218873]
[1693885092851,0.004,25664.0,25663.0,2.70146873]
[1693885093087,0.004,25664.0,25663.0,2.70128873]
[1693885093316,0.004,25664.0,25663.0,2.69936873]
[1693885093499,0.004,25664.0,25663.0,2.69360873]
[1693885093704,0.004,25664.0,25663.0,2.69090873]
[1693885093905,0.004,25664.0,25663.0,2.69186873]
[1693885094056,0.004,25664.0,25663.0,2.69168873]
[1693885094253,0.004,25664.0,25663.0,2.69390873]
[1693885094475,0.004,25664.0,25663.0,2.69402873]
[1693885094677,0.004,25664.0,25663.0,2.44060027]
[1693885094915,0.004,25664.0,25663.0,2.44042027]
[1693885095117,0.004,25664.0,25663.0,2.43994027]
[1693885095337,0.004,25664.0,25663.0,2.43982027]
[1693885095631,0.004,25664.0,25663.0,2.47110903]
[1693885095832,0.004,25664.0,25663.0,2.47086903]
[1693885096035,0.004,25664.0,25663.0,2.47092903]
[1693885096236,0.004,25664.0,25663.0,2.47068903]
[1693885096443,0.004,25664.0,25663.0,2.72651342]
[1693885096651,0.004,25664.0,25663.0,2.47446903]
[1693885096982,0.004,25664.0,25663.0,2.48544903]
[1693885097181,0.004,25664.0,25663.0,2.48556903]
[1693885097338,0.004,25664.0,25663.0,2.70963329]
[1693885097680,0.004,25664.0,25663.0,2.47920903]
[1693885097884,0.004,25664.0,25663.0,2.47824903]
[1693885098080,0.004,25664.0,25663.0,2.47812903]
[1693885098318,0.004,25664.0,25663.0,2.76794224]
[1693885098524,0.004,25664.0,25663.0,2.76848224]
[1693885098729,0.004,25664.0,25663.0,2.47686903]
[1693885098936,0.004,25664.0,25663.0,2.47836903]
[1693885099118,0.004,25664.0,25663.0,2.47686903]
[1693885099472,0.004,25664.0,25663.0,2.77682872]
[1693885099673,0.004,25664.0,25663.0,2.77580872]
[1693885099879,0.004,25664.0,25663.0,2.76926872]
[1693885100080,0.004,25664.0,25663.0,2.76866872]
[1693885100326,0.004,25664.0,25663.0,2.76848872]
[1693885100503,0.004,25664.0,25663.0,2.76860872]
[1693885100728,0.004,25664.0,25663.0,2.76848872]
[1693885100906,0.004,25664.0,25663.0,2.76830872]
[1693885101082,0.004,25664.0,25663.0,2.76920872]
[1693885101285,0.004,25664.0,25663.0,2.76878872]
[1693885101909,0.004,25664.0,25663.0,2.76860872]
[1693885102675,0.004,25664.0,25663.0,2.76992872]
[1693885102877,0.004,25664.0,25663.0,2.76848872]
[1693885103058,0.004,25664.0,25663.0,2.76866872]
[1693885103240,0.004,25664.0,25663.0,2.76842872]
[1693885103764,0.004,25664.0,25663.0,2.77262872]
[1693885103963,0.004,25664.0,25663.0,2.76866872]
[1693885104163,0.004,25664.0,25663.0,2.76932872]
[1693885104392,0.004,25664.0,25663.0,2.76668872]
[1693885104597,0.004,25664.0,25663.0,2.76656872]
[1693885104779,0.004,25664.0,25663.0,2.76716872]
[1693885104986,0.004,25664.0,25663.0,2.76734872]
[1693885105154,0.004,25664.0,25663.0,2.76740872]
[1693885105354,0.004,25664.0,25663.0,2.76758872]
[1693885105567,0.004,25664.0,25663.0,2.76824872]
[1693885105770,0.004,25664.0,25663.0,2.76860872]
[1693885105972,0.004,25664.0,25663.0,2.76872872]
[1693885106148,0.004,25664.0,25663.0,2.76818872]
[1693885106352,0.004,25664.0,25663.0,2.76878872]
[1693885106713,0.004,25664.0,25663.0,2.77148872]
[1693885106850,0.004,25664.0,25663.0,2.77142872]
[1693885107050,0.004,25664.0,25663.0,2.77136872]
[1693885107256,0.004,25664.0,25663.0,2.77142872]
[1693885107476,0.004,25664.0,25663.0,2.77130872]
[1693885107888,0.004,25664.0,25663.0,2.77112872]
[1693885108043,0.004,25664.0,25663.0,2.47326903]
[1693885108266,0.004,25664.0,25663.0,2.47362903]
[1693885108472,0.004,25664.0,25663.0,2.47350903]
[1693885108876,0.004,25664.0,25663.0,2.47344903]
[1693885109113,0.004,25664.0,25663.0,2.75646239]
[1693885109323,0.004,25664.0,25663.0,2.75454239]
[1693885109479,0.004,25664.0,25663.0,2.75484239]
[1693885109675,0.004,25664.0,25663.0,2.75478239]
[1693885110099,0.004,25664.0,25663.0,2.47206903]
[1693885110341,0.004,25664.0,25663.0,2.47218903]
[1693885110544,0.004,25664.0,25663.0,2.47200903]
[1693885110759,0.004,25664.0,25663.0,2.47218903]
[1693885110963,0.004,25664.0,25663.0,2.47188903]
[1693885111110,0.004,25664.0,25663.0,2.47146903]
[1693885111311,0.004,25664.0,25663.0,2.47098903]
[1693885111511,0.004,25664.0,25663.0,2.47080903]
[1693885111715,0.004,25664.0,25663.0,2.76604602]
[1693885111920,0.004,25664.0,25663.0,2.76592602]
[1693885112102,0.004,25664.0,25663.0,2.75830602]
[1693885112304,0.004,25664.0,25663.0,2.75914602]
[1693885112503,0.004,25664.0,25663.0,2.75956602]
[1693885112711,0.004,25664.0,25663.0,2.16393199]
[1693885112919,0.004,25664.0,25663.0,1.86393199]
[1693885113129,0.03881686,25664.0,25663.0,1.86393199]
[1693885113496,0.03681686,25664.0,25663.0,1.83893199]
[1693885113693,0.03681686,25664.0,25663.0,1.83993199]
[1693885114096,0.03781686,25664.0,25663.0,1.84993199]
[1693885114302,0.03581686,25664.0,25663.0,1.82493199]
[1693885114507,0.03681686,25664.0,25663.0,1.83793199]
[1693885114709,0.03681686,25664.0,25663.0,1.542695]
[1693885127445,0.03681686,25664.0,25663.0,1.03613]
[1693885128453,0.03581686,25664.0,25663.0,1.02613]
[1693885128643,0.03581686,25664.0,25663.0,1.02713]
[1693885128644,0.04381686,25664.0,25663.0,1.02713]
[1693885128845,0.04281686,25664.0,25663.0,1.01413]
[1693885129044,0.04681686,25664.0,25663.0,1.01413]
[1693885131280,0.04681686,25664.0,25663.0,0.507565]
[1693885133475,0.04681686,25664.0,25663.0,0.001]
[1693885133675,3.22998772,25664.0,25663.0,0.001]
[1693885134302,2.33337413,25664.0,25663.0,0.001]
[1693885134890,0.08,25663.0,25661.0,1.01319]
[1693885135077,0.1654,25663.0,25661.0,1.01319]
[1693885135399,0.03463258,25662.0,25661.0,1.01319]
[1693885136447,0.03463258,25662.0,25661.0,1.01519]
[1693885136724,0.03463258,25662.0,25661.0,1.01319]
[1693885136995,0.03463258,25662.0,25661.0,1.01519]
[1693885137335,0.03463258,25662.0,25661.0,1.02019]
[1693885137540,1.3662017,25662.0,25661.0,0.007]
[1693885137713,2.2455637,25662.0,25661.0,0.007]
[1693885138455,1.4662017,25662.0,25661.0,0.005]
[1693885138733,0.04,25661.0,25660.0,1.013246]
[1693885138941,0.1254,25661.0,25660.0,1.013246]
[1693885140101,0.1094,25661.0,25660.0,1.015246]
[1693885140285,0.1494,25661.0,25660.0,1.015246]
[1693885141301,0.1094,25661.0,25660.0,1.015246]
[1693885141721,0.1304,25661.0,25660.0,1.017246]
[1693885142764,0.16503488,25661.0,25660.0,1.017246]
[1693885143168,1.33107215,25661.0,25660.0,0.004]
[1693885143366,0.55168015,25661.0,25660.0,0.004]
[1693885145184,0.55168015,25661.0,25660.0,0.510625]
[1693885149778,0.16503488,25661.0,25660.0,0.510625]
[1693885150098,0.16503488,25661.0,25660.0,2.26439838]
[1693885150099,0.07963488,25661.0,25660.0,2.26439838]
[1693885150305,0.08,25669.0,25660.0,3.26004338]
[1693885150514,0.25355659,25670.0,25664.0,0.02]
[1693885150515,0.09344351,25670.0,25664.0,0.02]
[1693885150692,0.0195,25671.0,25665.0,3.07385338]
[1693885150896,0.0195,25671.0,25670.0,0.0854]
[1693885151102,0.0195,25671.0,25670.0,1.75933911]
[1693885151317,0.0195,25671.0,25670.0,2.025708]
[1693885151526,0.0195,25671.0,25670.0,1.519281]
[1693885152118,0.0245,25671.0,25670.0,1.519281]
[1693885152451,0.0255,25671.0,25670.0,1.519281]
[1693885156469,0.0255,25671.0,25670.0,1.012854]
[1693885157567,0.1109,25671.0,25669.0,0.934964]
[1693885157988,0.02820071,25670.0,25669.0,0.934964]
[1693885158714,0.02820071,25670.0,25669.0,0.467481]
[1693885159122,0.02820071,25670.0,25669.0,0.93497]
[1693885159328,0.02820071,25670.0,25669.0,0.87569106]
[1693885159588,0.03120071,25670.0,25669.0,0.87569106]
[1693885160449,0.03220071,25670.0,25669.0,0.87569106]
[1693885163342,0.03220071,25670.0,25669.0,1.34318006]
[1693885167858,0.03220071,25670.0,25669.0,0.87569106]
[1693885170707,1.97708398,25670.0,25668.0,0.467507]
[1693885171113,2.44372925,25670.0,25668.0,0.467507]
[1693885171316,2.05708398,25670.0,25668.0,0.467507]
[1693885171522,2.05608398,25670.0,25668.0,0.467507]
[1693885172147,1.27396498,25670.0,25668.0,0.474507]
[1693885172350,1.27396498,25670.0,25668.0,0.479507]
[1693885173147,1.27396498,25670.0,25668.0,0.472507]
[1693885173342,1.27396498,25670.0,25668.0,0.479507]
[1693885173864,1.27396498,25670.0,25668.0,0.007]
[1693885174421,2.05308398,25670.0,25668.0,0.005]
[1693885174852,1.16579427,25669.0,25667.0,0.467515]
[1693885175587,0.02661583,25668.0,25667.0,0.467515]
[1693885175789,0.4132611,25668.0,25666.0,0.467534]
[1693885175956,1.2778411,25668.0,25666.0,0.467534]
[1693885176276,1.2778411,25668.0,25665.0,1.402654]
[1693885176704,1.2778411,25668.0,25667.0,0.007]
[1693885177115,1.2978411,25668.0,25667.0,0.007]
[1693885177318,2.0770211,25668.0,25665.0,0.467546]
[1693885177516,2.0770211,25668.0,25665.0,0.935102]
[1693885177517,0.47204527,25667.0,25665.0,0.935102]
[1693885177739,0.47204527,25667.0,25665.0,0.960102]
[1693885178522,0.76566808,25667.0,25665.0,0.960102]
[1693885178723,0.02,25666.0,25665.0,0.025]
[1693885178959,1.96512727,25666.0,25665.0,0.025]
[1693885179313,2.05052727,25666.0,25665.0,0.025]
[1693885179518,2.05052727,25666.0,25663.0,0.935168]
[1693885179749,0.0854,25664.0,25663.0,0.935168]
[1693885180121,2.05052727,25666.0,25663.0,0.935168]
[1693885180502,2.07052727,25666.0,25665.0,0.002]
[1693885180887,2.05152727,25666.0,25664.0,0.46758]
[1693885181805,2.07152727,25666.0,25665.0,0.002]
[1693885182056,2.07152727,25666.0,25664.0,0.46758]
[1693885182390,2.39984534,25666.0,25663.0,0.935172]
[1693885182572,2.22472727,25666.0,25663.0,0.935172]
[1693885182991,2.20872727,25666.0,25665.0,0.001]
[1693885183411,2.20472727,25666.0,25663.0,1.402762]
[1693885183796,2.21772727,25666.0,25664.0,0.001]
[1693885184047,2.19772727,25666.0,25664.0,0.467581]
[1693885184782,2.21772727,25666.0,25665.0,0.002]
[1693885185261,2.18572727,25666.0,25664.0,0.467581]
[1693885185650,2.18472727,25666.0,25664.0,0.467581]
[1693885185803,2.18972727,25666.0,25664.0,0.467581]
[1693885187032,2.20172727,25666.0,25664.0,0.468581]
[1693885187728,0.02653478,25665.0,25664.0,0.468581]
[1693885188139,0.02653478,25665.0,25664.0,0.001]
[1693885188749,0.02653478,25665.0,25663.0,0.935172]
[1693885188952,0.03153478,25665.0,25663.0,0.935172]
[1693885189576,0.02653478,25665.0,25663.0,0.935172]
[1693885189925,0.02753478,25665.0,25663.0,0.935172]
[1693885190289,0.80680578,25665.0,25663.0,0.935172]
[1693885190703,0.81880578,25665.0,25664.0,0.001]
[1693885190905,0.80680578,25665.0,25663.0,0.935172]
[1693885191110,0.80980578,25665.0,25663.0,0.935172]
[1693885191464,0.80680578,25665.0,25663.0,0.935172]
[1693885191687,0.81780578,25665.0,25664.0,0.001]
[1693885191889,0.82280578,25665.0,25664.0,0.001]
[1693885192291,0.81780578,25665.0,25664.0,0.001]
[1693885192521,0.03853478,25665.0,25664.0,0.001]
[1693885192717,0.03953478,25665.0,25664.0,0.468581]
[1693885193163,0.03853478,25665.0,25664.0,0.468581]
[1693885193504,0.03153478,25665.0,25664.0,0.467581]
[1693885193702,0.03453478,25665.0,25664.0,0.467581]
[1693885194081,0.03153478,25665.0,25664.0,0.467581]
[1693885194288,0.04353478,25665.0,25664.0,0.468581]
[1693885196284,0.04353478,25665.0,25664.0,0.936162]
[1693885197458,0.04353478,25665.0,25664.0,1.17408432]
[1693885197657,0.04353478,25665.0,25664.0,1.72706532]
[1693885197861,0.04353478,25665.0,25664.0,1.80842532]
[1693885198074,0.04353478,25665.0,25664.0,1.80086532]
[1693885198273,0.04353478,25665.0,25664.0,1.80644532]
[1693885198505,0.017,25665.0,25664.0,1.80182532]
[1693885198708,0.017,25665.0,25664.0,1.80044532]
[1693885198857,0.017,25665.0,25664.0,1.80002532]
[1693885199059,0.012,25665.0,25664.0,1.79798532]
[1693885199292,0.012,25665.0,25664.0,1.81404532]
[1693885199502,0.012,25665.0,25664.0,1.81386532]
[1693885199747,0.09335384,25670.0,25664.0,1.81220532]
[1693885199946,0.09335384,25670.0,25667.0,0.0854]
[1693885200151,0.3328846,25671.0,25668.0,1.402524]
[1693885200350,0.02497551,25669.0,25668.0,1.55718211]
[1693885200547,0.02497551,25669.0,25668.0,1.402524]
[1693885200749,0.3328846,25671.0,25668.0,1.402524]
[1693885200950,0.09335384,25670.0,25668.0,1.402524]
[1693885201395,0.09335384,25670.0,25668.0,1.404524]
[1693885202050,0.09735384,25670.0,25668.0,1.404524]
[1693885202467,0.09335384,25670.0,25668.0,1.404524]
[1693885202667,0.02498394,25669.0,25668.0,1.402524]
[1693885202865,0.02498394,25669.0,25668.0,1.404524]
[1693885203073,0.02498394,25669.0,25668.0,1.406524]
[1693885203451,0.02498394,25669.0,25668.0,1.404524]
[1693885203973,0.02898394,25669.0,25668.0,1.404524]
[1693885204176,0.05398394,25669.0,25668.0,1.406524]
[1693885205626,0.04998394,25669.0,25668.0,0.002]
[1693885205881,0.04998394,25669.0,25668.0,0.004]
[1693885205882,0.14733415,25669.0,25668.0,0.004]
[1693885206163,0.90148315,25669.0,25668.0,0.002]
[1693885206420,0.89748315,25669.0,25667.0,0.467514]
[1693885206687,0.92648315,25669.0,25668.0,0.004]
[1693885207215,0.89748315,25669.0,25667.0,0.467514]
[1693885207717,0.89748315,25669.0,25667.0,0.001]
[1693885207718,0.38664527,25668.0,25667.0,0.001]
[1693885208470,3.3087884,25668.0,25667.0,0.003]
[1693885208731,3.3554635,25668.0,25667.0,0.003]
[1693885208977,3.3554635,25668.0,25667.0,0.002]
[1693885209226,3.3314635,25668.0,25667.0,0.003]
[1693885209597,3.2954635,25668.0,25664.0,0.467572]
[1693885209799,0.1787875,25667.0,25664.0,0.467572]
[1693885210128,1.1202261,25666.0,25664.0,0.467572]
[1693885210328,0.3409851,25666.0,25664.0,0.467572]
[1693885211664,0.3409851,25666.0,25664.0,0.468572]
[1693885211864,2.91212977,25667.0,25664.0,0.468572]
[1693885212069,3.05215508,25667.0,25664.0,0.468572]
[1693885212281,3.20945508,25667.0,25664.0,0.468572]
[1693885212799,0.007,25666.0,25664.0,0.468572]
[1693885212982,0.04597934,25666.0,25664.0,0.467572]
[1693885213177,0.04797934,25666.0,25664.0,0.468572]
[1693885213530,0.03897934,25666.0,25664.0,0.467572]
[1693885213740,0.13239413,25666.0,25664.0,0.468572]
[1693885213937,0.13239413,25666.0,25664.0,0.467572]
[1693885214389,0.14139413,25666.0,25664.0,0.468572]
[1693885215694,0.14839413,25666.0,25664.0,0.468572]
[1693885217591,0.5350394,25666.0,25664.0,0.468572]
[1693885217802,0.02528927,25665.0,25664.0,0.468572]
[1693885218003,0.06426861,25665.0,25664.0,0.468572]
[1693885218978,0.03228927,25665.0,25664.0,0.468572]
[1693885219504,0.03228927,25665.0,25664.0,0.467572]
[1693885219901,0.04128927,25665.0,25664.0,0.468572]
[1693885227478,1.60423207,25665.0,25664.0,0.001]
[1693885227702,1.51081728,25665.0,25664.0,0.001]
[1693885227875,2.38350307,25665.0,25664.0,0.001]
[1693885228223,2.29008828,25665.0,25664.0,0.001]
[1693885228449,2.38350307,25665.0,25664.0,0.001]
[1693885230476,2.52362526,25665.0,25664.0,0.001]
[1693885230970,3.29488147,25665.0,25664.0,0.001]
[1693885231184,3.50158887,25665.0,25664.0,0.001]
[1693885231343,4.00891841,25665.0,25664.0,0.001]
[1693885231745,4.15783841,25665.0,25664.0,0.001]
[1693885231949,4.17283841,25665.0,25664.0,0.002]
[1693885232158,4.16383841,25665.0,25664.0,0.001]
[1693885232339,4.16383841,25665.0,25664.0,0.002]
[1693885232740,0.02,25663.0,25659.0,0.46767]
[1693885232937,0.38664527,25662.0,25659.0,0.46767]
[1693885233162,1.94538127,25662.0,25659.0,0.46767]
[1693885233378,1.96561714,25662.0,25659.0,0.46767]
[1693885233565,2.05906015,25662.0,25659.0,0.46767]
[1693885233743,1.96561714,25662.0,25659.0,0.46767]
[1693885234713,0.39379767,25661.0,25659.0,0.46767]
[1693885234922,1.55984694,25661.0,25659.0,0.46767]
[1693885235330,2.33925094,25661.0,25658.0,0.935361]
[1693885235981,2.33925094,25661.0,25659.0,0.001]
[1693885236323,2.33925094,25661.0,25658.0,0.935361]
[1693885236738,2.33925094,25661.0,25658.0,0.936361]
[1693885237192,2.49195094,25661.0,25658.0,0.936361]
[1693885237582,2.49195094,25661.0,25658.0,0.939361]
[1693885239219,2.18355327,25661.0,25658.0,0.939361]
[1693885245296,0.0854,25660.0,25658.0,0.939361]
[1693885245496,0.864825,25660.0,25658.0,0.471677]
[1693885246130,0.864825,25660.0,25658.0,0.470677]
[1693885246506,0.864825,25660.0,25658.0,0.471677]
[1693885247118,0.864825,25660.0,25658.0,0.467677]
[1693885247324,1.24505963,25660.0,25658.0,0.467677]
[1693885247526,1.24505963,25660.0,25658.0,0.470677]
[1693885247727,0.02023587,25659.0,25658.0,0.470677]
[1693885247927,0.02023587,25659.0,25658.0,0.467677]
[1693885248539,0.02023587,25659.0,25658.0,0.468677]
[1693885248750,0.02023587,25659.0,25658.0,0.467677]
[1693885248953,0.02623587,25659.0,25658.0,0.467677]
[1693885249251,0.03423587,25659.0,25658.0,0.468677]
[1693885249385,0.33316018,25659.0,25658.0,0.468677]
[1693885249793,2.75924014,25659.0,25658.0,0.001]
[1693885250000,2.84464014,25659.0,25658.0,0.001]
[1693885250666,2.83864014,25659.0,25658.0,0.001]
[1693885251044,2.83864014,25659.0,25658.0,0.002]
[1693885251045,2.91264014,25659.0,25658.0,0.002]
[1693885251241,3.29928541,25659.0,25658.0,0.002]
[1693885251452,3.22528541,25659.0,25658.0,0.001]
[1693885251649,3.30928541,25659.0,25658.0,0.003]
[1693885251880,3.30928541,25659.0,25658.0,0.002]
[1693885251881,3.30128541,25659.0,25658.0,0.002]
[1693885252260,3.31728541,25659.0,25658.0,0.004]
[1693885252431,3.30128541,25659.0,25658.0,0.002]
[1693885252859,3.23988541,25659.0,25658.0,0.003]
[1693885254595,0.12823587,25659.0,25658.0,0.71099731]
[1693885254798,0.12823587,25659.0,25658.0,0.24330731]
[1693885258294,0.10823587,25659.0,25658.0,0.24330731]
[1693885258478,0.10823587,25659.0,25658.0,0.003]
[1693885265789,0.06823587,25659.0,25658.0,0.47069]
[1693885266001,0.06823587,25659.0,25658.0,1.49147]
[1693885266215,0.06823587,25659.0,25658.0,1.58057]
[1693885266388,0.06823587,25659.0,25658.0,1.58579]
[1693885266593,0.048,25659.0,25658.0,1.58489]
[1693885266832,0.048,25659.0,25658.0,1.58459]
[1693885266943,0.024,25659.0,25658.0,1.58235]
[1693885267147,0.024,25659.0,25658.0,1.58481]
[1693885267371,0.024,25659.0,25658.0,1.58463]
[1693885267612,0.024,25659.0,25658.0,1.58007]
[1693885267810,0.04,25664.0,25658.0,1.57889]
[1693885268014,0.04,25664.0,25662.0,1.402851]
[1693885268476,0.02017648,25663.0,25662.0,1.402851]
[1693885269197,0.02017648,25663.0,25662.0,1.404851]
[1693885269399,0.02017648,25663.0,25662.0,1.402851]
[1693885270271,0.04417648,25663.0,25662.0,1.404851]
[1693885271079,0.06817648,25663.0,25662.0,1.406851]
[1693885274595,0.06817648,25663.0,25662.0,0.939234]
[1693885278293,0.06817648,25663.0,25662.0,0.471617]
[1693885278561,0.06817648,25663.0,25662.0,0.41232189]
[1693885279949,0.06817648,25663.0,25662.0,0.49772189]
[1693885281501,0.2975041,25663.0,25662.0,0.49772189]
[1693885285355,0.06817648,25663.0,25662.0,0.49772189]
[1693885289644,0.06817648,25663.0,25662.0,0.0894]
[1693885293174,0.06817648,25663.0,25662.0,0.004]
[1693885294199,0.45482175,25663.0,25662.0,0.004]
[1693885294404,2.88613836,25663.0,25662.0,0.004]